bitfinex/quotes_ETHUSD_20250807
["timestamp","ask_amount","ask_price","bid_price","bid_amount"]
[1754534560292,4.274,3668.2,3668.1,3.18270702]
[1754534560624,4.274,3668.2,3668.1,3.65420702]
[1754534561331,4.274,3668.2,3668.1,0.002]
[1754534561742,1e-08,3668.2,3668.1,12.34013673]
[1754534561888,1e-08,3668.2,3668.1,13.40213673]
[1754534562089,1e-08,3668.2,3668.1,3.79020702]
[1754534565846,1e-08,3668.2,3668.1,3.31870702]
[1754534566006,1e-08,3668.2,3668.1,0.138]
[1754534566007,5.03490001,3668.2,3668.1,0.138]
[1754534566622,5.03490001,3668.2,3668.1,0.002]
[1754534566820,5.17090001,3668.2,3668.1,0.002]
[1754534567493,5.17090001,3668.2,3668.1,2.72820702]
[1754534567494,4.74260001,3668.2,3668.1,2.72820702]
[1754534567732,4.28000001,3668.2,3668.1,0.002]
[1754534568527,4.28000001,3668.2,3668.1,2.72820702]
[1754534568737,1e-08,3668.2,3668.1,2.72820702]
[1754534569035,1e-08,3668.2,3668.1,3.65420702]
[1754534572538,1e-08,3668.2,3668.1,0.928]
[1754534572704,1e-08,3668.2,3668.1,3.65420702]
[1754534573225,1e-08,3668.2,3668.1,3.79020702]
[1754534573422,1e-08,3668.2,3668.1,2.86420702]
[1754534573597,1e-08,3668.2,3668.1,3.32500702]
[1754534574400,1e-08,3668.2,3668.1,0.138]
[1754534574605,1e-08,3668.2,3668.1,3.32500702]
[1754534574817,1e-08,3668.2,3668.1,13.36573673]
[1754534575015,1e-08,3668.2,3668.1,16.22973673]
[1754534575206,1e-08,3668.2,3668.1,16.33895973]
[1754534575403,1e-08,3668.2,3668.1,3.72703002]
[1754534575604,1e-08,3668.2,3668.1,3.29823002]
[1754534576098,1e-08,3668.2,3668.1,0.002]
[1754534576413,0.91470001,3668.2,3668.1,0.002]
[1754534577134,3.64083271,3668.2,3668.1,0.002]
[1754534579719,6.64083271,3668.2,3668.1,0.002]
[1754534581118,7.19083271,3668.2,3668.1,0.002]
[1754534584326,6.73963271,3668.2,3668.1,0.002]
[1754534584503,11.34383271,3668.2,3668.1,0.002]
[1754534584920,11.47983271,3668.2,3668.1,0.002]
[1754534586738,3.00000001,3668.2,3668.1,0.002]
[1754534587046,6.77683271,3668.2,3668.1,0.002]
[1754534587215,3.13600001,3668.2,3668.1,0.002]
[1754534587423,7.29300001,3668.2,3668.1,0.002]
[1754534587861,10.01913271,3668.2,3668.1,0.002]
[1754534588357,10.93383271,3668.2,3668.1,0.002]
[1754534589971,11.48383271,3668.2,3668.1,0.002]
[1754534592669,10.01913271,3668.2,3668.1,0.002]
[1754534593030,7.29300001,3668.2,3668.1,0.002]
[1754534593265,7.29300001,3668.2,3668.1,0.4628]
[1754534594447,10.01913271,3668.2,3668.1,0.002]
[1754534594829,10.93383271,3668.2,3668.1,0.002]
[1754534595563,11.48383271,3668.2,3668.1,0.002]
[1754534596166,7.32683271,3668.2,3668.1,0.002]
[1754534596347,11.48383271,3668.2,3668.1,0.002]
[1754534598938,18.66383271,3668.2,3668.1,0.002]
[1754534606176,3.27672738,3667.4,3667.3,0.002]
[1754534606488,3.27672738,3667.4,3667.1,1e-08]
[1754534606489,3.27687609,3667.2,3667.1,1e-08]
[1754534606694,17.12087609,3667.2,3667.1,1e-08]
[1754534606993,18.00117609,3667.2,3667.1,1e-08]
[1754534607195,18.20728747,3667.2,3667.1,1e-08]
[1754534608002,18.21128747,3667.2,3667.1,1e-08]
[1754534609302,18.21128747,3667.2,3665.5,0.1368]
[1754534609303,2.72763456,3666.2,3665.5,0.1368]
[1754534609505,15.48441138,3667.2,3663.8,0.20787935]
[1754534609506,0.55,3665.9,3665.3,0.4366]
[1754534609706,3.0,3665.4,3663.6,9.61192971]
[1754534610024,0.55,3665.5,3664.9,0.4366]
[1754534610235,4.176,3665.4,3665.0,0.4828]
[1754534610530,4.176,3665.3,3665.1,0.4366]
[1754534610731,4.176,3665.3,3665.2,0.9194]
[1754534611307,4.176,3665.3,3665.2,0.4828]
[1754534612921,0.55,3665.6,3665.2,0.4828]
[1754534613107,3.0,3665.4,3665.3,0.9194]
[1754534613513,1.0024,3666.0,3665.3,0.4828]
[1754534613748,3.55,3665.8,3665.3,0.9194]
[1754534614034,0.55,3665.6,3665.4,0.4828]
[1754534614335,4.175,3665.5,3665.4,0.4366]
[1754534614732,4.175,3665.5,3665.2,0.4828]
[1754534615135,4.175,3665.5,3665.0,0.4828]
[1754534615496,4.175,3665.5,3665.1,0.4828]
[1754534615897,4.175,3665.5,3665.2,0.4828]
[1754534616408,4.174,3665.4,3665.3,0.9194]
[1754534616828,3.55,3665.8,3665.3,0.4828]
[1754534617137,4.173,3665.7,3665.3,3.64768145]
[1754534617334,4.173,3665.7,3665.0,0.4366]
[1754534617566,4.173,3665.7,3665.1,0.4828]
[1754534618655,3.0,3665.6,3665.0,2.72845712]
[1754534618846,4.173,3665.5,3664.9,3.21137574]
[1754534619445,0.1368,3665.3,3664.9,3.21137574]
[1754534619742,0.1368,3665.3,3664.7,3.3021354]
[1754534619743,0.1368,3665.3,3665.2,2.72836407]
[1754534619943,4.172,3665.3,3665.2,2.86516407]
[1754534620270,0.136,3665.7,3665.6,2.72806634]
[1754534620468,0.136,3666.0,3665.9,2.72781105]
[1754534620648,4.312,3666.0,3665.9,3.64721105]
[1754534621534,0.55,3666.7,3666.2,2.72761918]
[1754534621838,0.136,3666.3,3666.0,3.21050742]
[1754534622038,0.136,3666.1,3666.0,3.16430742]
[1754534622663,4.175,3666.1,3666.0,0.9194]
[1754534622862,0.136,3666.4,3666.1,2.72769428]
[1754534623048,4.175,3666.3,3665.9,0.6188]
[1754534623261,3.60798793,3666.2,3665.3,0.4828]
[1754534623563,0.136,3665.7,3665.4,2.72821217]
[1754534623766,4.176,3665.6,3665.2,3.34796251]
[1754534624072,4.176,3665.6,3665.5,2.72814077]
[1754534624374,4.176,3665.6,3665.3,0.4828]
[1754534624549,4.176,3665.6,3665.3,3.21107407]
[1754534625090,4.176,3665.6,3665.4,2.72820868]
[1754534625598,4.176,3665.6,3665.3,3.21107075]
[1754534625782,4.176,3665.6,3665.4,2.7282144]
[1754534625982,4.176,3665.6,3665.5,2.72814077]
[1754534626183,4.176,3665.6,3665.4,2.72820016]
[1754534629390,4.176,3665.6,3665.3,3.21106907]
[1754534629593,4.176,3665.6,3665.4,2.72821135]
[1754534631912,4.176,3665.6,3665.3,3.21108208]
[1754534632216,4.176,3665.6,3665.4,2.72820293]
[1754534632596,4.176,3665.6,3663.7,3.54944135]
[1754534632597,0.4915,3665.5,3664.8,2.72863466]
[1754534632794,0.1368,3665.2,3664.9,0.4748]
[1754534633032,4.3128,3665.2,3664.7,0.6045]
[1754534633219,4.3128,3665.2,3664.8,0.9425]
[1754534633421,4.3128,3665.2,3665.0,2.72845932]
[1754534633626,4.3128,3665.2,3665.1,2.72843851]
[1754534634233,4.3128,3665.2,3665.0,2.72850359]
[1754534635218,4.3128,3665.2,3664.8,3.67116022]
[1754534635419,4.3128,3665.2,3665.0,2.72843965]
[1754534635732,4.3128,3665.2,3665.0,3.20323965]
[1754534636536,0.1368,3665.6,3665.2,2.72829714]
[1754534636737,4.174,3665.3,3665.2,3.20309714]
[1754534638908,0.136,3665.7,3665.5,2.72814077]
[1754534639234,4.174,3665.6,3665.4,2.72820487]
[1754534639430,4.174,3665.6,3665.3,2.7282768]
[1754534640154,5.116,3665.6,3665.2,2.72836171]
[1754534640341,0.4915,3665.5,3665.2,2.72836171]
[1754534641127,0.4915,3665.4,3665.1,0.1368]
[1754534641330,0.1368,3665.4,3664.9,0.1368]
[1754534641528,0.6283,3665.4,3665.1,2.72838991]
[1754534642559,0.6283,3665.4,3665.2,2.72834557]
[1754534643233,4.174,3665.3,3665.2,2.72835361]
[1754534643636,4.174,3665.3,3665.2,3.20315361]
[1754534643953,0.1368,3665.4,3665.3,2.72828963]
[1754534644257,4.172,3665.4,3665.3,3.20308963]
[1754534644842,0.1368,3665.6,3665.5,2.72814077]
[1754534645042,4.3088,3665.6,3665.4,2.7282133]
[1754534645360,4.3088,3665.6,3665.3,2.72827247]
[1754534645746,4.8003,3665.6,3665.3,2.72827247]
[1754534646356,4.3088,3665.6,3665.3,2.72827482]
[1754534646659,4.172,3665.5,3665.1,3.34003207]
[1754534646960,4.172,3665.5,3665.3,2.72823186]
[1754534647257,0.1368,3665.6,3665.4,2.7282152]
[1754534647458,4.172,3665.5,3665.4,2.7282152]
[1754534648068,0.1368,3665.6,3665.5,2.72814077]
[1754534648387,4.3078,3665.6,3665.3,2.72822018]
[1754534648567,5.2498,3665.6,3665.2,2.72835345]
[1754534648978,0.4915,3665.5,3665.2,2.72835345]
[1754534649663,0.4915,3665.5,3665.3,2.72828368]
[1754534649871,4.7583,3665.6,3665.3,2.72828368]
[1754534650069,4.7583,3665.6,3665.1,2.8652206]
[1754534650262,5.2498,3665.6,3665.1,2.8652206]
[1754534650584,5.2498,3665.6,3665.3,2.72823351]
[1754534650777,4.7993,3665.6,3665.2,2.72836219]
[1754534650978,4.3078,3665.6,3665.4,2.72814633]
[1754534651173,4.3078,3665.6,3665.5,2.72814077]
[1754534651389,4.3058,3665.6,3665.4,2.72819817]
[1754534652096,0.1368,3665.6,3665.5,2.72814077]
[1754534652270,4.168,3665.6,3665.4,2.72819387]
[1754534652670,0.136,3665.7,3665.2,0.4748]
[1754534652857,0.136,3666.0,3665.7,2.727939]
[1754534653051,4.169,3665.9,3665.6,2.72805782]
[1754534653283,4.6605,3665.9,3665.6,2.72805782]
[1754534653665,0.4915,3665.9,3665.6,2.72805782]
[1754534653873,4.168,3665.8,3665.7,2.72797357]
[1754534654395,4.168,3665.8,3665.5,2.86492975]
[1754534654396,4.6595,3665.8,3665.5,2.86492975]
[1754534654595,4.6595,3665.8,3665.6,2.7280434]
[1754534654769,1.078,3666.0,3665.7,2.72799192]
[1754534655095,4.168,3665.9,3665.6,2.72806036]
[1754534655496,4.6595,3665.9,3665.6,2.72806036]
[1754534655664,5.11,3665.9,3665.6,2.72806036]
[1754534656279,0.942,3665.9,3665.5,2.86493749]
[1754534656478,4.167,3665.8,3665.5,2.86493749]
[1754534656678,4.6585,3665.8,3665.5,2.86493749]
[1754534659015,0.942,3665.7,3664.7,4.166]
[1754534659311,0.1368,3665.6,3665.2,2.72832971]
[1754534659613,0.1368,3665.4,3665.0,2.72845092]
[1754534659903,0.942,3665.3,3665.0,2.72845092]
[1754534660105,4.6372,3665.2,3665.0,2.72845092]
[1754534660473,0.9413,3665.1,3665.0,2.72845092]
[1754534661199,0.9413,3665.1,3664.9,2.73057198]
[1754534661697,0.9413,3665.1,3665.0,2.72851296]
[1754534662102,0.9413,3665.1,3664.9,2.73058737]
[1754534662410,0.4711,3665.1,3665.0,2.72851296]
[1754534662753,4.3038,3665.2,3665.1,2.72843851]
[1754534663158,4.3038,3665.2,3665.0,2.72849858]
[1754534663322,5.2451,3665.2,3665.0,2.72849858]
[1754534663851,0.9413,3665.1,3664.9,2.73056877]
[1754534664052,0.9413,3665.0,3664.9,2.73056877]
[1754534664227,0.9413,3665.0,3664.9,0.002]
[1754534665321,1.0781,3665.0,3664.9,0.002]
[1754534666427,3.80661296,3665.0,3664.9,0.002]
[1754534667968,7.35661296,3665.0,3664.9,0.002]
[1754534668277,17.01476948,3665.0,3664.9,0.002]
[1754534669042,7.773,3665.0,3664.9,0.002]
[1754534669264,8.2441,3665.0,3664.9,0.002]
[1754534669435,0.607,3665.0,3664.9,0.002]
[1754534669774,4.3028,3665.0,3664.9,0.002]
[1754534670070,11.52261296,3665.0,3664.9,0.002]
[1754534670771,11.52961296,3665.0,3664.9,0.002]
[1754534671875,21.18776948,3665.0,3664.9,0.002]
[1754534672378,21.05096948,3665.0,3664.9,0.002]
[1754534674252,21.05096948,3665.0,3664.9,1e-08]
[1754534676351,15.93689284,3664.7,3664.6,0.004]
[1754534676551,26.66789284,3664.7,3664.6,0.004]
[1754534676751,27.60919284,3664.7,3664.6,1e-08]
[1754534676979,27.60919284,3664.7,3664.3,0.002]
[1754534676980,6.27895972,3664.4,3664.3,0.002]
[1754534677178,20.11011624,3664.4,3664.3,0.002]
[1754534677384,21.05141624,3664.4,3664.3,0.002]
[1754534678082,16.87841624,3664.4,3664.3,0.002]
[1754534678387,21.18880234,3664.4,3664.3,0.002]
[1754534682410,21.18780234,3664.4,3664.3,0.002]
[1754534682609,21.18921624,3664.4,3664.3,0.002]
[1754534682778,11.53005972,3664.4,3664.3,0.002]
[1754534683290,11.05995972,3664.4,3664.3,0.002]
[1754534683903,6.88595972,3664.4,3664.3,0.002]
[1754534684102,10.58875972,3664.4,3664.3,0.002]
[1754534684601,7.8598,3664.4,3664.3,0.002]
[1754534684787,10.58875972,3664.4,3664.3,0.4562]
[1754534684972,10.58875972,3664.4,3664.3,0.002]
[1754534686471,7.8598,3664.4,3664.3,0.002]
[1754534686668,7.8588,3664.4,3664.3,0.002]
[1754534686882,7.8588,3664.4,3664.3,0.4562]
[1754534687970,3.1368,3664.4,3664.3,0.002]
[1754534688170,7.3098,3664.4,3664.3,0.8887]
[1754534688371,7.3098,3664.4,3664.3,0.002]
[1754534688571,10.03875972,3664.4,3664.3,0.002]
[1754534688978,11.53005972,3664.4,3664.3,0.002]
[1754534689579,6.41575972,3664.4,3664.3,0.002]
[1754534689804,11.05895972,3664.4,3664.3,0.002]
[1754534690196,10.03975972,3664.4,3664.3,0.002]
[1754534691001,21.18511624,3664.4,3664.3,0.002]
[1754534691204,21.18911624,3664.4,3664.3,0.002]
[1754534691803,11.07835972,3664.4,3664.3,0.002]
[1754534691979,10.59275972,3664.4,3664.3,0.002]
[1754534692501,6.41575972,3664.4,3664.3,0.002]
[1754534692670,3.6868,3664.4,3664.3,0.002]
[1754534692880,7.59275972,3664.4,3664.3,0.002]
[1754534694479,20.73551624,3664.4,3664.3,0.002]
[1754534694900,21.18811624,3664.4,3664.3,0.002]
[1754534697629,21.18655886,3664.4,3664.3,0.002]
[1754534700030,17.00955886,3664.4,3664.3,0.002]
[1754534700293,21.18455886,3664.4,3664.3,0.002]
[1754534701352,21.18455886,3664.4,3664.3,1e-08]
[1754534701904,3.27925764,3664.0,3663.9,0.002]
[1754534702239,20.25021416,3664.0,3663.9,1e-08]
[1754534702406,21.18741416,3664.0,3663.9,1e-08]
[1754534702605,21.29684416,3664.0,3663.9,1e-08]
[1754534703339,21.29684416,3664.0,3662.7,0.4674]
[1754534703340,0.55,3662.6,3662.1,0.4959]
[1754534703637,0.1368,3662.2,3662.1,0.04]
[1754534703818,4.3138,3662.2,3662.1,0.4959]
[1754534704425,4.3138,3662.2,3662.1,0.9633]
[1754534704619,4.177,3662.2,3662.1,0.9633]
[1754534704843,4.177,3662.3,3662.1,1.1001]
[1754534705142,0.1368,3662.8,3662.7,2.73015363]
[1754534705342,4.188,3663.5,3662.8,2.73015179]
[1754534705644,4.188,3663.5,3663.0,2.86674268]
[1754534705947,4.3248,3663.5,3663.1,0.9233]
[1754534706110,4.191,3663.4,3663.2,2.7298403]
[1754534706312,0.1368,3663.5,3663.3,0.9233]
[1754534706639,4.19,3663.4,3663.3,0.4559]
[1754534706809,4.19,3663.4,3663.3,0.9233]
[1754534707013,4.19,3663.4,3662.9,0.1368]
[1754534707242,0.1368,3663.5,3663.1,2.72991942]
[1754534707447,0.1368,3663.5,3663.3,2.72976426]
[1754534707448,4.19,3663.4,3663.3,2.72976426]
[1754534707781,4.19,3663.4,3663.3,0.4559]
[1754534708040,4.19,3663.4,3663.0,3.65327423]
[1754534708240,4.19,3663.4,3663.1,2.72991079]
[1754534708440,4.19,3663.4,3663.1,3.18581079]
[1754534708643,4.19,3663.4,3663.2,0.4559]
[1754534709546,4.19,3663.4,3662.9,2.86687065]
[1754534709848,4.19,3663.4,3663.0,0.4559]
[1754534709849,0.1368,3663.2,3663.0,0.4559]
[1754534710048,4.188,3663.1,3663.0,2.73000273]
[1754534710347,0.1368,3663.2,3663.1,2.7299282]
[1754534710729,4.188,3663.2,3663.1,0.9233]
[1754534710912,4.188,3663.2,3663.1,3.65322533]
[1754534712851,0.1368,3663.5,3663.4,2.72970464]
[1754534713052,4.187,3663.5,3663.2,0.4559]
[1754534713355,4.187,3663.5,3663.3,3.18561647]
[1754534714055,4.187,3663.5,3663.4,0.4559]
[1754534714242,4.187,3663.5,3663.2,2.72979691]
[1754534714438,4.187,3663.5,3663.3,3.18567659]
[1754534714642,1.16387799,3663.6,3663.3,3.18567659]
[1754534714839,4.187,3663.4,3663.3,0.4559]
[1754534715017,4.187,3663.4,3663.1,3.18581044]
[1754534715224,4.187,3663.4,3663.2,0.4559]
[1754534715539,4.187,3663.4,3663.2,3.1857478]
[1754534715737,0.1368,3663.5,3663.4,2.72970464]
[1754534716048,1.16387799,3663.6,3663.5,2.72963013]
[1754534716229,5.34887799,3663.6,3663.5,2.72963013]
[1754534716429,5.34887799,3663.6,3663.5,3.65293013]
[1754534716762,1.16387799,3663.6,3663.5,3.65293013]
[1754534717065,1.16387799,3663.6,3663.5,3.78973013]
[1754534717252,5.34987799,3663.6,3663.5,3.78973013]
[1754534717950,5.34987799,3663.6,3662.7,9.66015652]
[1754534717951,5.34987799,3663.6,3663.1,0.4559]
[1754534718172,5.83447799,3663.6,3663.2,2.72984032]
[1754534718552,5.83447799,3663.6,3663.1,3.32262556]
[1754534718751,5.34987799,3663.6,3663.4,2.72970033]
[1754534718953,1.16387799,3663.6,3663.5,0.4559]
[1754534719172,5.35087799,3663.6,3663.5,3.65293013]
[1754534720103,5.34987799,3663.6,3663.5,3.65293013]
[1754534720968,5.34987799,3663.6,3663.5,2.72963013]
[1754534722473,5.34987799,3663.6,3663.5,3.21833013]
[1754534722673,5.34987799,3663.6,3663.5,2.72963013]
[1754534722859,5.34987799,3663.6,3663.5,3.21833013]
[1754534723066,5.34987799,3663.6,3663.5,3.68583013]
[1754534723386,1.16387799,3663.6,3663.5,3.68583013]
[1754534723583,5.34787799,3663.6,3663.5,3.68583013]
[1754534723869,5.34787799,3663.6,3663.5,3.21833013]
[1754534724246,5.34787799,3663.6,3663.5,2.72963013]
[1754534724683,5.34787799,3663.6,3663.4,2.86649726]
[1754534724888,5.34787799,3663.6,3663.4,0.1368]
[1754534725058,4.6811,3663.6,3663.3,2.72977047]
[1754534725268,4.184,3663.6,3663.4,2.72967568]
[1754534725646,0.4971,3663.5,3663.3,2.72975783]
[1754534725846,4.6801,3663.4,3663.3,2.72975783]
[1754534726158,4.6801,3663.4,3663.1,2.8666756]
[1754534727376,4.183,3663.4,3663.1,0.1368]
[1754534727582,0.4971,3663.3,3663.1,0.1368]
[1754534727795,4.182,3663.2,3662.9,2.73006215]
[1754534727950,5.1161,3663.2,3662.8,2.73013905]
[1754534728149,4.6791,3663.2,3662.9,0.1368]
[1754534728350,4.182,3663.2,3662.9,0.1368]
[1754534728851,4.619,3663.2,3662.7,0.002]
[1754534729071,0.6339,3663.1,3662.7,0.002]
[1754534729383,4.182,3663.0,3662.7,0.002]
[1754534729784,4.6791,3663.0,3662.7,0.002]
[1754534730784,4.6791,3663.0,3662.7,2.73221584]
[1754534732085,4.182,3663.0,3662.7,2.73221584]
[1754534732289,4.6791,3663.0,3662.7,2.73221584]
[1754534732862,4.182,3663.0,3662.9,2.73007726]
[1754534733275,4.182,3663.0,3662.8,2.73013361]
[1754534736858,4.182,3663.0,3662.7,0.002]
[1754534737110,5.1161,3663.0,3662.7,0.002]
[1754534737455,4.619,3663.0,3662.7,0.002]
[1754534737661,0.9341,3662.9,3662.7,0.002]
[1754534737902,1.0709,3662.9,3662.7,0.002]
[1754534738100,0.1368,3662.9,3662.7,0.002]
[1754534738318,0.9341,3662.8,3662.7,0.002]
[1754534739115,3.66425179,3662.8,3662.7,0.002]
[1754534739313,0.4971,3662.8,3662.7,0.002]
[1754534739631,3.66425179,3662.8,3662.7,0.002]
[1754534739835,4.21425179,3662.8,3662.7,0.002]
[1754534740140,7.21425179,3662.8,3662.7,0.002]
[1754534740335,11.39425179,3662.8,3662.7,0.002]
[1754534743552,7.21425179,3662.8,3662.7,0.002]
[1754534743751,11.39425179,3662.8,3662.7,0.002]
[1754534744957,11.39325179,3662.8,3662.7,0.002]
[1754534745753,7.21425179,3662.8,3662.7,0.002]
[1754534746050,11.39325179,3662.8,3662.7,0.002]
[1754534747117,11.39325179,3662.8,3662.1,0.04]
[1754534747118,3.28059909,3662.2,3662.1,0.04]
[1754534747330,20.25555561,3662.2,3662.1,0.04]
[1754534747655,8.2509,3662.2,3662.1,0.04]
[1754534747879,10.98149909,3662.2,3662.1,0.04]
[1754534749532,3.1368,3662.2,3662.1,0.04]
[1754534749754,7.3158,3662.2,3662.1,0.04]
[1754534749956,20.25455561,3662.2,3662.1,0.04]
[1754534750171,21.17045561,3662.2,3662.1,0.04]
[1754534752767,21.30927389,3662.2,3662.1,0.04]
[1754534752976,21.30927389,3662.2,3662.1,0.042]
[1754534755891,21.30927389,3662.2,3662.1,0.042]
[1754534758182,17.13027389,3662.2,3662.1,0.042]
[1754534758384,21.30727389,3662.2,3662.1,0.042]
[1754534759582,4.363371,3662.2,3662.1,0.042]
[1754534759818,8.539371,3662.2,3662.1,0.042]
[1754534760023,11.26997009,3662.2,3662.1,0.042]
[1754534760204,7.8638,3662.2,3662.1,0.042]
[1754534760435,3.6868,3662.2,3662.1,0.042]
[1754534760590,7.3138,3662.2,3662.1,0.527]
[1754534760987,3.1368,3662.2,3662.1,0.527]
[1754534761191,7.3138,3662.2,3662.1,0.527]
[1754534761585,7.3128,3662.2,3662.1,0.527]
[1754534762720,3.1368,3662.2,3662.1,0.527]
[1754534762884,4.3128,3662.2,3662.1,0.9982]
[1754534763082,0.1368,3662.2,3662.1,3.72887365]
[1754534763284,4.3128,3662.2,3662.1,3.72887365]
[1754534763520,4.3128,3662.2,3662.1,0.9982]
[1754534763726,6.562,3662.6,3662.2,2.73059909]
[1754534763890,6.6988,3662.6,3662.1,2.77265665]
[1754534764089,6.6988,3662.6,3662.3,0.485]
[1754534764285,6.6988,3662.6,3662.5,2.73037542]
[1754534764509,10.8788,3662.6,3662.5,0.9562]
[1754534765399,6.6988,3662.6,3662.5,0.9562]
[1754534765595,10.8788,3662.6,3662.5,0.9562]
[1754534766207,10.8788,3662.6,3662.3,2.7305184]
[1754534766419,10.8788,3662.6,3662.4,0.485]
[1754534766723,6.6988,3662.6,3662.5,0.4712]
[1754534766890,10.8768,3662.6,3662.5,0.4712]
[1754534767094,10.8768,3662.6,3662.5,0.9562]
[1754534767295,10.8768,3662.6,3662.5,0.485]
[1754534768022,0.1368,3662.6,3662.5,0.9562]
[1754534768223,4.3148,3662.6,3662.5,0.9562]
[1754534768528,4.3148,3662.6,3662.5,3.68657542]
[1754534769021,4.3148,3662.6,3662.5,0.9562]
[1754534772022,0.1368,3662.6,3662.5,0.9562]
[1754534772226,1.27138149,3663.1,3662.5,0.6218]
[1754534772391,1.13458149,3663.1,3663.0,2.73000273]
[1754534772590,1.13458149,3663.1,3663.0,3.82300273]
[1754534774022,1.13458149,3663.1,3663.0,3.35180273]
[1754534774328,1.13458149,3663.1,3663.0,3.82300273]
[1754534779042,0.001,3663.1,3663.0,3.82300273]
[1754534779607,0.001,3663.1,3663.0,6.82300273]
[1754534780840,0.001,3663.4,3663.3,2.72977916]
[1754534781012,0.001,3663.4,3663.3,6.90777916]
[1754534781208,0.001,3663.4,3663.3,10.97707916]
[1754534781410,0.001,3663.4,3663.3,6.79907916]
[1754534781637,0.001,3663.5,3663.4,2.72970464]
[1754534782014,0.001,3663.5,3663.4,6.90770464]
[1754534783111,0.001,3663.5,3663.4,3.21260464]
[1754534783448,0.001,3663.5,3663.4,2.72970464]
[1754534784233,0.001,3663.5,3663.4,3.21260464]
[1754534785155,0.001,3663.5,3663.4,2.72970464]
[1754534785308,0.001,3663.5,3663.4,6.90670464]
[1754534787043,0.001,3663.5,3663.3,2.86656667]
[1754534787354,0.001,3663.5,3663.3,0.1368]
[1754534787717,0.4194,3663.8,3663.3,0.4829]
[1754534788055,0.4611,3663.9,3663.6,2.72950261]
[1754534788056,0.001,3663.9,3663.6,2.72950261]
[1754534788251,0.001,3663.9,3663.4,3.34940374]
[1754534788252,0.001,3663.9,3663.8,2.72940662]
[1754534789036,0.001,3663.9,3663.7,0.1368]
[1754534789235,0.4601,3663.8,3663.7,0.1368]
[1754534789754,0.9275,3663.8,3663.7,0.1368]
[1754534789954,0.001,3663.9,3663.7,0.1368]
[1754534790154,0.9275,3663.8,3663.7,0.1368]
[1754534791832,0.8775,3663.8,3663.7,0.1368]
[1754534792038,0.8775,3663.8,3663.5,2.72962689]
[1754534792238,0.4674,3663.8,3663.6,0.1368]
[1754534792969,0.001,3663.9,3663.7,2.72947607]
[1754534793461,0.001,3663.9,3663.8,2.72940662]
[1754534793660,0.001,3663.9,3663.8,0.1368]
[1754534794163,0.4684,3663.9,3663.8,0.1368]
[1754534794377,0.9285,3663.9,3663.8,0.1368]
[1754534794588,0.9285,3663.9,3663.5,2.72961291]
[1754534794760,0.9275,3663.8,3663.7,0.1368]
[1754534795670,0.4674,3663.8,3663.7,2.86628112]
[1754534795869,0.001,3663.9,3663.7,2.86628112]
[1754534796381,0.001,3663.9,3663.7,2.86626929]
[1754534796677,0.8785,3664.1,3663.7,2.72946929]
[1754534796882,0.8785,3664.1,3663.8,2.72940044]
[1754534797182,0.8785,3664.1,3663.7,2.86626594]
[1754534797381,0.8785,3664.1,3663.7,0.1368]
[1754534797580,0.1378,3664.2,3663.9,2.72933043]
[1754534797777,0.6052,3664.2,3663.9,2.72933043]
[1754534798013,0.1378,3664.2,3663.8,2.72940452]
[1754534798185,0.4674,3664.1,3663.8,2.72940452]
[1754534798350,0.4674,3664.1,3664.0,0.1368]
[1754534798886,0.4601,3664.1,3664.0,0.1368]
[1754534799185,3.18928315,3664.1,3663.2,4.175]
[1754534799387,0.9275,3664.0,3663.6,0.1368]
[1754534799685,3.65677098,3664.0,3663.5,0.1368]
[1754534799854,2.72927098,3664.0,3663.5,0.1368]
[1754534800050,2.7295538,3663.7,3662.9,2.73001878]
[1754534800383,2.7295538,3663.7,3663.1,0.1368]
[1754534800384,1.0643,3663.6,3663.1,0.1368]
[1754534800561,3.79386403,3663.6,3663.1,0.1368]
[1754534800761,0.9275,3663.5,3663.1,0.1368]
[1754534801166,0.9275,3663.4,3663.1,0.1368]
[1754534801365,0.4601,3663.4,3663.1,0.1368]
[1754534801571,0.4674,3663.3,3663.1,2.86672336]
[1754534801884,0.4674,3663.3,3663.1,0.1368]
[1754534802056,0.1368,3663.6,3663.1,0.1368]
[1754534802253,0.6042,3663.6,3663.1,0.1368]
[1754534802468,0.6042,3663.6,3663.1,0.6197]
[1754534802653,1.0643,3663.6,3663.2,2.72985367]
[1754534802851,4.174,3663.8,3663.3,2.72976596]
[1754534803055,4.7709,3663.8,3663.3,2.86656596]
[1754534803255,0.4674,3663.7,3663.3,2.86656596]
[1754534803488,4.3108,3663.8,3663.3,2.86656596]
[1754534803793,0.4674,3663.6,3663.3,0.1368]
[1754534804006,0.4674,3663.6,3663.3,2.86653627]
[1754534805052,0.4674,3663.6,3663.3,2.8665241]
[1754534805519,0.4674,3663.6,3663.3,0.1368]
[1754534805690,0.4674,3663.5,3663.3,0.1368]
[1754534805854,0.9275,3663.5,3663.3,0.1368]
[1754534806058,0.9275,3663.5,3663.3,2.86653932]
[1754534806257,0.4674,3663.5,3663.3,2.86653932]
[1754534806590,0.4674,3663.5,3663.3,0.1368]
[1754534807700,0.4674,3663.4,3663.3,0.1368]
[1754534808002,0.4601,3663.5,3663.3,2.86657916]
[1754534808195,0.9275,3663.5,3663.3,2.86657916]
[1754534808599,0.9275,3663.5,3663.3,0.1368]
[1754534808996,0.9275,3663.5,3663.3,2.86656953]
[1754534809301,0.9275,3663.5,3663.3,0.1368]
[1754534810302,0.4601,3663.5,3663.3,0.1368]
[1754534810504,0.4712,3663.4,3663.3,0.1368]
[1754534811505,0.91,3663.4,3663.3,0.1368]